[Event "45th FIDE Olympiad 2024"]
[Site "Budapest"]
[Date "2024.09.11"]
[Round "1.159"]
[White "Lokander, Martin"]
[Black "Schwarz, Bernhard"]
[Result "1-0"]
[ECO "C11"]
[WhiteElo "2469"]
[BlackElo "1875"]
[Annotator "TA"]
[PlyCount "73"]
[EventDate "2024.09.05"]
[EventType "team-tourn"]
[EventCountry "HUN"]
[SourceTitle "playchess.com"]
[Source "ChessBase"]
[SourceQuality "1"]
[WhiteTeam "Sweden"]
[BlackTeam "Namibia"]
[WhiteTeamCountry "SWE"]
[BlackTeamCountry "NAM"]
[TimeControl "40/5400+30:1800+30"]

{[%evp 9,73,30,51,50,49,42,79,82,76,74,106,111,113,108,111,102,131,133,141,130,144,150,177,174,180,188,372,312,491,472,491,481,492,494,407,368,575,584,587,579,570,469,789,807,841,843,852,806,800,742,849,747,745,739,1631,1414,29964,29962,29965,29966,29977,29976,29980,29977,29974,29975]} 1. d4 e6 2. e4 {[%cal Be2e4,Be4e5][%mdl 32]} d5 3. Nc3 Nf6 4. e5 Ng8 {[%cal Bf6g8,Bg8e7,Be7g6][%mdl 32]} 5. a3 c5 6. dxc5 $1 Bxc5 7. Qg4 Kf8 8. Nf3 {White is better.} Nc6 9. Bd3 Nge7 {[#]} 10. Na4 $1 {White is much more active. The black rooks are passive.} Bb6 11. Nxb6 Qxb6 12. O-O Ng6 13. Re1 Qc7 14. b4 {[%cal Bb2b4,Bb4b5][%mdl 32]} Bd7 15. b5 Nce7 16. a4 a6 17. Ba3 {bxa6 is the strong threat.} axb5 (17... Kg8 18. Qd4 Qc8) 18. axb5 $18 {And now Bxe7+ would win.} Qc3 {[#]} (18... Re8 {was necessary.} 19. h4 h5) 19. Bb2 $1 {[%mdl 512]} Qc8 20. Rxa8 Qxa8 {Black is weak on the dark squares} 21. h4 h5 22. Qb4 Kg8 (22... Ke8 {keeps fighting.} 23. Ra1 Qb8) 23. Ra1 Qb8 24. Qd6 Qxd6 25. exd6 Nc8 (25... f6 $142 26. dxe7 Kf7) 26. Bxg6 fxg6 27. Ra8 Kf8 28. Ne5 {[%csl LRd7,LRg6]} Ke8 29. Nxg6 Rg8 30. Ne7 Kf7 31. Nxg8 Kxg8 {[%mdl 4096] Endgame. KRB-KBN} 32. Rb8 {Strongly threatening b6.} Kf8 33. Rxb7 {White mates.} Ke8 34. Be5 g6 35. b6 Bc6 36. Rc7 Nxb6 37. Rxc6 {Black did not feel at home in the position after the opening.   Weighted Error Value: White=0.08 (flawless) /Black=0.63.  Mistake:       	---       	Black=4      Inaccurate:     	---       	Black=2      OK:         	White=11    	Black=6      Strong:       	White=1     	---        Brilliant:      	White=1     	---} 1-0

[Event "45th FIDE Olympiad 2024"]
[Site "Budapest"]
[Date "2024.09.11"]
[Round "1.160"]
[White "Khoa, Goodwill"]
[Black "Pantzar, Milton"]
[Result "0-1"]
[ECO "C55"]
[WhiteElo "1890"]
[BlackElo "2437"]
[Annotator "TA"]
[PlyCount "88"]
[EventDate "2024.09.05"]
[EventType "team-tourn"]
[EventCountry "HUN"]
[SourceTitle "playchess.com"]
[Source "ChessBase"]
[SourceQuality "1"]
[WhiteTeam "Namibia"]
[BlackTeam "Sweden"]
[WhiteTeamCountry "NAM"]
[BlackTeamCountry "SWE"]
[TimeControl "40/5400+30:1800+30"]

{[%evp 9,88,-336,-354,-335,-347,-387,-389,-441,-439,-439,-432,-466,-461,-479,-450,-454,-453,-495,-487,-485,-436,-556,-451,-543,-502,-504,-413,-412,-398,-457,-432,-488,-458,-583,-583,-585,-587,-587,-583,-595,-600,-606,-585,-600,-599,-606,-606,-656,-584,-566,-555,-716,-716,-802,-810,-797,-722,-804,-797,-956,-945,-1188,-1185,-1797,-1164,-3060,-2275,-29976,-29980,-29980,-29981,-29989,-29990,-29990,-29989,-29990,-29990,-29990,-29991,-29991,-29992]} 1. e4 e5 2. Nf3 Nc6 3. Bc4 Nf6 4. Nc3 Nxe4 5. Nxe5 Nxe5 6. Qe2 Nxc4 7. Nxe4 {[%cal Re4d6] [#]} Be7 8. Nf6+ {Black is winning.} (8. Ng3 d5) 8... gxf6 9. Qxc4 d5 10. Qe2 Rg8 11. g3 Bh3 {Hoping for ...d4.} 12. d4 Qd7 {Repels Qb5} 13. Be3 O-O-O 14. O-O-O Rde8 15. a3 Bf8 16. Qd2 Bg2 17. Rhg1 Bf3 18. Rde1 Bd6 19. h4 Re6 20. Qc3 Rge8 21. Bd2 Rxe1+ 22. Rxe1 Rxe1+ 23. Bxe1 Qe6 24. b4 Qe2 25. Qd2 Qxd2+ 26. Kxd2 Be4 27. c3 Kd7 28. Ke3 Bb1 29. Kd2 Bf8 30. Ke3 Kc6 31. a4 Bc2 32. a5 Kb5 33. Kd2 Bg6 34. f4 Bf5 35. Bf2 b6 36. axb6 cxb6 37. Be1 Kc4 {[#] ...a5 is the strong threat.} 38. Bf2 a5 {Black mates.} 39. bxa5 bxa5 40. Be1 a4 41. Kc1 Ba3+ 42. Kd1 Bb2 43. g4 Bxg4+ 44. Kc2 a3 {White did not feel at home in the position after the opening.   Weighted Error Value: White=0.36/Black=0.20 (precise) .  OK:         	White=4     	Black=11     Best:        	White=1     	---} 0-1

[Event "45th FIDE Olympiad 2024"]
[Site "Budapest"]
[Date "2024.09.11"]
[Round "1.161"]
[White "Giasi, Viresh"]
[Black "Nogerbek, Kazybek"]
[Result "0-1"]
[ECO "A50"]
[WhiteElo "1998"]
[BlackElo "2519"]
[Annotator "TA"]
[PlyCount "72"]
[EventDate "2024.09.05"]
[EventType "team-tourn"]
[EventCountry "HUN"]
[SourceTitle "playchess.com"]
[Source "ChessBase"]
[SourceQuality "1"]
[WhiteTeam "Suriname"]
[BlackTeam "Kazakhstan"]
[WhiteTeamCountry "SUR"]
[BlackTeamCountry "KAZ"]
[TimeControl "40/5400+30:1800+30"]

{[%evp 9,72,33,35,0,0,0,37,23,41,36,36,22,17,17,31,16,24,32,28,0,0,-82,-81,-91,-83,-86,-86,-79,-85,-82,-85,-87,-90,-90,-30,-49,-32,-85,-43,-50,-46,-45,-42,-52,-47,-69,-14,-72,-72,-115,-72,-206,-213,-276,-110,-300,-188,-361,-343,-596,-557,-1775,-1451,-29987,-29988]} 1. d4 Nf6 2. c4 b6 3. Nc3 Bb7 4. f3 Nc6 5. e4 e5 6. Nge2 exd4 7. Nxd4 Nxd4 8. Qxd4 {White is slightly better.} Bc5 9. Qe5+ Be7 10. Bf4 d6 11. Qd4 O-O 12. O-O-O Nd7 13. Nd5 Bxd5 14. Qxd5 a5 15. e5 {[#]} (15. Kb1 $11 {keeps the balance.}) 15... Bg5 $1 $17 16. g3 Nxe5 (16... dxe5 $2 {perishes.} 17. Bxg5 Qxg5+ 18. f4 $18) 17. Bxg5 Qxg5+ 18. f4 Qh6 19. Qd2 Nd7 {Black is more active.} 20. Bg2 Rad8 21. Rde1 a4 ({Black should play} 21... Rfe8 $17 22. Bc6 Rxe1+ 23. Rxe1 Nc5) 22. Re3 Qh5 23. Qd4 (23. Qd5 $15 Qg6 24. Rhe1) 23... Qa5 24. Rhe1 {[#]} a3 $1 25. b3 b5 26. Bc6 bxc4 27. Qxc4 Nf6 ({Better is} 27... Nb8 $15 28. b4 Qh5) 28. Qd4 (28. b4 $11 Qa7 29. b5) 28... Rb8 $36 {[%mdl 2048] White is under strong pressure.} 29. R1e2 Rb4 30. Qd2 {[#]} (30. Qc3 $17 {keeps fighting.}) 30... Qb6 $1 $19 31. Rc3 h6 $2 (31... d5 $19 {is more deadly. ...Ne4 would now be deadly.} 32. Rc2 Re4) 32. Qe1 $2 (32. Qe3 $17) 32... Rb8 33. Qd2 (33. Qf2 {was necessary.}) 33... Rd4 34. Qc2 (34. Qe3) 34... d5 {Threatens to win with ...Ne4.} 35. Qf5 {[#]} Re4 $1 {[%mdl 512]} 36. Kd2 (36. Rg2 Re1+) 36... Qd4+ {Weighted Error Value: White=0.82/Black=0.32.  Loses game:     	White=1     	---        Missed win:     	---       	Black=1      Mistake:       	White=6     	Black=2      Inaccurate:     	White=4     	Black=4      OK:         	White=10    	Black=12     Best:        	White=2     	Black=2      Strong:       	---       	Black=2} 0-1

[Event "45th FIDE Olympiad 2024"]
[Site "Budapest"]
[Date "2024.09.11"]
[Round "1.162"]
[White "Suleymenov, Alisher"]
[Black "Yeung, Jason"]
[Result "1-0"]
[ECO "D15"]
[WhiteElo "2484"]
[BlackElo "1993"]
[Annotator "TA"]
[PlyCount "97"]
[EventDate "2024.09.05"]
[EventType "team-tourn"]
[EventCountry "HUN"]
[SourceTitle "playchess.com"]
[Source "ChessBase"]
[SourceQuality "1"]
[WhiteTeam "Kazakhstan"]
[BlackTeam "Suriname"]
[WhiteTeamCountry "KAZ"]
[BlackTeamCountry "SUR"]
[TimeControl "40/5400+30:1800+30"]

{[%evp 10,97,8,-45,-29,-43,0,0,-1,5,3,0,0,-13,22,-21,-22,-25,-18,-25,-17,-16,-31,-48,0,0,0,-7,-12,-20,0,0,72,57,62,47,106,39,37,41,25,39,42,25,44,36,36,25,48,28,166,155,146,124,133,120,132,119,133,125,527,516,505,481,619,619,602,611,602,581,568,554,662,641,839,806,889,830,875,834,1546,834,812,809,797,797,700,660,647,543]} 1. d4 d5 {[%cal Bd7d5,Bd5c4][%mdl 32]} 2. c4 c6 3. Nf3 Nf6 4. Nc3 dxc4 5. e4 {[%cal Be2e4,Be4e5][%mdl 32]} b5 6. a4 (6. Be2 $11) 6... b4 $15 7. Na2 a5 8. e5 Nd5 {The position is equal.} 9. Bxc4 e6 10. Bg5 Qb6 11. O-O h6 12. Bh4 Ba6 13. Rc1 Nd7 {[%cal Ob4b3]} 14. Re1 g5 {...Bxc4 would now be deadly.} 15. Bg3 Be7 16. h3 Bxc4 (16... Qb7 $15 {should be considered.}) 17. Rxc4 $11 c5 18. dxc5 Nxc5 19. Nd4 Rd8 {White must now prevent ...Qb7.} 20. Nc1 $1 {[%cal Ba2c1,Bc1b3,Bb3c5][%mdl 32]} Qa6 (20... O-O $11) 21. Qc2 $16 Nb6 ({Of course not} 21... Nc3 22. Rxc5 Bxc5 23. bxc3 $16) 22. Rxc5 Rxd4 (22... Bxc5 $14 23. Qxc5 Nxa4 24. Qc6+ (24. Qc2 Rxd4 25. Qxa4+ Kf8 $11) 24... Qxc6 25. Nxc6 Rd5) 23. Rb5 (23. Rc6 $16) 23... O-O $1 $14 24. Qc6 {Repels Rd5. Threatens to win with Nb3.} Bd8 25. Nb3 {[%csl LRa5,LRd4]} Rc4 26. Nc5 Qc8 27. Qxc8 (27. Rxb6 $2 {loses.} Bxb6 (27... Rxc5 28. Qxc8 Rxc8 29. Rb7 $17) 28. Qxb6 Qxc5 $19 (28... Rxc5 $2 29. Kh2 $19)) 27... Nxc8 28. Nd7 $36 {[%mdl 2048] White has good play.} Re8 29. Nf6+ Kf8 {Black is now going downhill.} (29... Bxf6 $11 {and Black has nothing to worry.} 30. exf6 Rc2) 30. Nxe8 $18 Kxe8 31. f3 Rc2 32. Bf2 {Prevents Bb6. Strongly threatening Rc5.} Ne7 33. Rb1 Nd5 34. Rc5 Rxf2 {[%mdl 8192]} 35. Kxf2 {White is clearly winning.} Bb6 {[#]} 36. Rbc1 Nc3 {[#]} (36... Kd7 37. Ke1) 37. bxc3 Bxc5+ {[%mdl 4096] Endgame. KR-KB} 38. Ke2 Kd7 39. cxb4 Bxb4 40. Kd3 h5 {[%cal Bh6h5,Bh5h4][%mdl 32]} 41. Ke4 h4 42. Rc2 Be7 43. f4 gxf4 44. Kxf4 Ke8 45. Kg4 Kd7 {Dodges Rc8} 46. Rf2 Ke8 47. Kh5 Kf8 48. Rf4 Kg7 49. Rc4 {Weighted Error Value: White=0.11 (very precise) /Black=0.38.  Loses game:     	---       	Black=1      Mistake:       	White=1     	Black=4      Inaccurate:     	White=1     	Black=3      OK:         	White=16    	Black=13     Best:        	White=3     	Black=1      Strong:       	White=1     	Black=1} 1-0

[Event "45th FIDE Olympiad 2024"]
[Site "Budapest"]
[Date "2024.09.11"]
[Round "1.163"]
[White "Kalidjo, Imaan"]
[Black "Zhalmakhanov, Ramazan"]
[Result "0-1"]
[ECO "D04"]
[WhiteElo "1934"]
[BlackElo "2497"]
[Annotator "TA"]
[PlyCount "46"]
[EventDate "2024.09.05"]
[EventType "team-tourn"]
[EventCountry "HUN"]
[SourceTitle "playchess.com"]
[Source "ChessBase"]
[SourceQuality "1"]
[WhiteTeam "Suriname"]
[BlackTeam "Kazakhstan"]
[WhiteTeamCountry "SUR"]
[BlackTeamCountry "KAZ"]
[TimeControl "40/5400+30:1800+30"]

{[%evp 11,46,8,13,-7,-19,-25,-17,-24,-14,-17,-25,-6,-15,-8,14,0,0,0,-4,0,0,-16,3,-139,-133,-136,-131,-191,-189,-206,-191,-197,-193,-187,-202,-316,-312]} 1. d4 Nf6 2. e3 d5 3. Bd3 Bg4 4. Nf3 c6 5. Nbd2 Nbd7 6. h3 Bh5 {[%cal Oe7e5]} 7. g4 Bg6 8. Qe2 e6 9. e4 {The position is equal.} dxe4 10. Nxe4 Nxe4 11. Bxe4 Nf6 12. Bd3 Qd5 13. Bd2 Bxd3 14. Qxd3 h5 15. g5 Ne4 16. c4 Qf5 17. Qe3 (17. Rd1 $11 {remains equal.}) 17... Nxd2 $17 18. Nxd2 Bd6 $1 19. h4 (19. Ne4 $17 {was worth a try.} Bf4 20. Qd3) 19... Bf4 $19 20. Qe2 Bxd2+ 21. Kxd2 {[#]} O-O-O $1 22. Kc3 {[#]} Qa5+ 23. Kc2 (23. Kd3 {might work better.}) 23... Rxd4 {Weighted Error Value: White=0.34/Black=0.02 (flawless) .  Mistake:       	White=3     	---        OK:         	White=4     	Black=9      Best:        	---       	Black=2      Strong:       	---       	Black=2} 0-1

[Event "45th FIDE Olympiad 2024"]
[Site "Budapest"]
[Date "2024.09.11"]
[Round "1.164"]
[White "Ansat, Aldiyar"]
[Black "Chashawa, Shaief"]
[Result "1-0"]
[ECO "C43"]
[WhiteElo "2457"]
[BlackElo "1825"]
[Annotator "TA"]
[PlyCount "55"]
[EventDate "2024.09.05"]
[EventType "team-tourn"]
[EventCountry "HUN"]
[SourceTitle "playchess.com"]
[Source "ChessBase"]
[SourceQuality "1"]
[WhiteTeam "Kazakhstan"]
[BlackTeam "Suriname"]
[WhiteTeamCountry "KAZ"]
[BlackTeamCountry "SUR"]
[TimeControl "40/5400+30:1800+30"]

{[%evp 9,55,23,22,14,38,41,43,27,41,39,45,19,88,93,123,125,132,122,272,235,231,241,731,721,688,688,687,436,389,185,196,207,159,195,198,195,176,192,139,139,127,129,418,380,525,460,391,306]} 1. e4 e5 2. Nf3 Nf6 3. d4 Nxe4 4. Bd3 Nc6 5. Nxe5 Nxe5 6. dxe5 d5 7. exd6 Nxd6 8. Qf3 {White is slightly better.} Be6 9. Nc3 Be7 10. Bf4 c6 (10... Bg5 $11) 11. Qg3 $1 $16 {White is more active.} g5 12. Be5 f6 {[#]} 13. O-O-O $1 {[%cal Oh1e1] Strongly threatening Rhe1!} Qc7 {[#]} (13... fxe5 $16 {was called for.} 14. Qxe5 Kf7) 14. Bg6+ $1 {[%mdl 512]} hxg6 15. Bxd6 Qa5 (15... Bxd6 16. Rxd6 Kf7) 16. Rhe1 $18 Qf5 17. Bxe7 Kxe7 18. Qc7+ Kf8 19. Rd6 (19. Qxb7 $142 Re8 20. Ne4 (20. Qxc6 Rh7 $18) (20. Qxa7 Re7 $18) 20... Qf4+ 21. Kb1) 19... Qf4+ 20. Kb1 Rc8 {[#]} 21. Qxc8+ $3 {[%mdl 512]} Bxc8 22. Rd8+ {[%cal Bd6d8,Bd8h8,Bh8h7][%mdl 32]} Kf7 23. Rxh8 $40 {[%mdl 128] White wants a kill.} Bf5 {[%cal Of4d2]} (23... Qxf2 $2 {too greedy.} 24. Rh7+ Kg8 25. Rhe7 $18) 24. Rh7+ Kf8 25. Re2 {[%cal Og2g3]} Bg4 $2 {[%mdl 8192]} (25... b5 $16 {was worth a try.}) 26. f3 {[%cal Oe2e4] Re4! would now be deadly.} Qd4 {( -> ...Qg1+)} 27. a3 (27. fxg4 $2 {is a self mate.} Qg1+) 27... Bf5 28. g4 {Weighted Error Value: White=0.40/Black=0.62.  Loses game:     	---       	Black=1      Mistake:       	---       	Black=3      Inaccurate:     	White=1     	Black=2      OK:         	White=7     	Black=4      Best:        	White=4     	Black=4      Strong:       	White=2     	---        Brilliant:      	White=1     	---} (28. Rxb7 Qg1+ 29. Ka2 Qc5 $16) 1-0

[Event "45th FIDE Olympiad 2024"]
[Site "Budapest"]
[Date "2024.09.11"]
[Round "1.165"]
[White "Neiksans, Arturs"]
[Black "Ebosse, Kingue Victor Patric"]
[Result "1-0"]
[ECO "E73"]
[WhiteElo "2571"]
[BlackElo "2014"]
[Annotator "TA"]
[PlyCount "51"]
[EventDate "2024.09.05"]
[EventType "team-tourn"]
[EventCountry "HUN"]
[SourceTitle "playchess.com"]
[Source "ChessBase"]
[SourceQuality "1"]
[WhiteTeam "Latvia"]
[BlackTeam "Cameroon"]
[WhiteTeamCountry "LAT"]
[BlackTeamCountry "CAM"]
[TimeControl "40/5400+30:1800+30"]

{[%evp 10,51,56,57,66,54,64,57,68,64,74,80,82,83,78,73,86,78,148,80,82,79,181,210,503,498,494,498,522,516,518,531,523,479,856,854,1046,1030,1320,1282,29990,29990,29990,29980]} 1. d4 Nf6 2. c4 g6 3. Nc3 Bg7 4. e4 d6 5. Be2 Nc6 6. d5 Ne5 7. f4 Ned7 8. Nh3 Nc5 {White is slightly better.} 9. Nf2 a5 {[%cal Ba7a5,Ba5a4][%mdl 32]} 10. Be3 b6 11. Qd2 a4 12. Rd1 O-O 13. O-O e6 (13... Nfd7 $142) 14. dxe6 (14. e5 $142) 14... Bxe6 $16 15. g4 Qe7 (15... Re8 $16) 16. f5 $18 Ncxe4 $2 (16... Bd7 {was worth a try.} 17. Bxc5 bxc5) 17. Nfxe4 Nxe4 18. Nxe4 {[#] aiming for f6.} gxf5 19. gxf5 Bxf5 20. Rxf5 Qxe4 21. Bd3 Qh4 (21... Qe6 $142 22. Kh1 Rae8) 22. Kh1 Rae8 23. Rg1 {[%cal Od2g2] Threatening mate with Qg2!} Kh8 24. Qg2 Bh6 25. Bxh6 Qxh6 {[#]} 26. Rh5 $3 {[%mdl 512] Weighted Error Value: White=0.05 (flawless) /Black=0.94.  Mistake:       	White=1     	Black=4      OK:         	White=10    	Black=6} 1-0

[Event "45th FIDE Olympiad 2024"]
[Site "Budapest"]
[Date "2024.09.11"]
[Round "1.166"]
[White "Zebaze, Dongmo Loic Dylane"]
[Black "Meshkovs, Nikita"]
[Result "0-1"]
[ECO "C41"]
[WhiteElo "1914"]
[BlackElo "2534"]
[Annotator "TA"]
[PlyCount "100"]
[EventDate "2024.09.05"]
[EventType "team-tourn"]
[EventCountry "HUN"]
[SourceTitle "playchess.com"]
[Source "ChessBase"]
[SourceQuality "1"]
[WhiteTeam "Cameroon"]
[BlackTeam "Latvia"]
[WhiteTeamCountry "CAM"]
[BlackTeamCountry "LAT"]
[TimeControl "40/5400+30:1800+30"]

{[%evp 9,100,0,0,-8,0,0,0,-9,0,0,0,-12,0,0,0,4,18,2,0,-37,-7,-32,-39,-39,-38,-43,-25,-29,-28,-31,-22,-65,-64,-66,-55,-65,-48,-70,-58,-66,-65,-66,-51,-91,-75,-81,-82,-75,-78,-83,-86,-83,-69,-77,-63,-71,-71,-71,-71,-71,-70,-70,-62,-68,-60,-78,-78,-78,-78,-78,-78,-118,-95,-121,-121,-115,-85,-209,-176,-158,-124,-626,-595,-536,-511,-1154,-1097,-1006,-1031,-1343,-1284,-1622,-1568]} 1. d4 Nf6 2. Nc3 d6 3. e4 Nbd7 4. Nf3 e5 5. dxe5 dxe5 6. Bd3 c6 7. O-O Qc7 8. a4 {The position is equal.} Nc5 9. h3 h6 10. Nh4 Be6 11. Qf3 Nxd3 12. Qxd3 Nh5 13. Ne2 (13. Rd1 {keeps more tension.} Nf4 14. Bxf4 exf4 15. Ne2) 13... g6 14. Qf3 Ng7 {aiming for ...Be7.} 15. Qf6 Qe7 16. Qxe7+ Bxe7 17. Nf3 f6 (17... Bc4 $5 18. Re1 $8 f6 $11) 18. Rd1 Bf7 19. Be3 Ne6 20. Rd3 Nc5 21. Bxc5 Bxc5 22. b3 Rd8 23. Rad1 Rxd3 24. Rxd3 Ke7 25. Kf1 a5 26. c4 Bb4 {[%cal Ob7b5]} 27. Nc3 Rb8 {[%cal Ob7b5]} 28. Na2 Bc5 29. Nc3 h5 30. Ke2 Be6 31. Nd2 h4 32. f3 f5 33. Kd1 Rh8 34. Ke2 Rh5 35. Kf1 Bb4 36. Ke2 Rh8 37. Kf1 Kf6 38. Ke2 Kg5 39. Kf2 Rb8 40. Na2 Bc5+ 41. Ke2 Kf4 42. Nc3 Bb4 43. Ncb1 (43. Nf1 $17) 43... Re8 44. Kf2 Re7 {Strongly threatening ...Rd7. Black is more active.} 45. Rd8 {[%mdl 8192] [#]} (45. Nc3 $17) 45... Rd7 $19 {Black is clearly winning.} 46. Rxd7 Bxd7 47. exf5 (47. Ke2 $142) 47... Bxf5 48. Ke2 Bc2 49. Kf2 Bd3 50. Kg1 Ke3 {Weighted Error Value: White=0.53/Black=0.07 (flawless) .  Loses game:     	White=1     	---        Mistake:       	White=2     	---        Inaccurate:     	White=4     	Black=1      OK:         	White=17    	Black=11     Best:        	---       	Black=1} 0-1

[Event "45th FIDE Olympiad 2024"]
[Site "Budapest"]
[Date "2024.09.11"]
[Round "1.167"]
[White "Kantans, Toms"]
[Black "Amba, Oyon Marius Claude"]
[Result "1-0"]
[ECO "B42"]
[WhiteElo "2486"]
[BlackElo "1975"]
[Annotator "TA"]
[PlyCount "77"]
[EventDate "2024.09.05"]
[EventType "team-tourn"]
[EventCountry "HUN"]
[SourceTitle "playchess.com"]
[Source "ChessBase"]
[SourceQuality "1"]
[WhiteTeam "Latvia"]
[BlackTeam "Cameroon"]
[WhiteTeamCountry "LAT"]
[BlackTeamCountry "CAM"]
[TimeControl "40/5400+30:1800+30"]

{[%evp 16,77,55,50,78,71,104,102,117,109,96,102,113,119,114,122,127,127,244,163,163,169,154,147,149,62,100,85,143,140,183,174,219,197,371,254,286,252,253,289,271,278,284,281,274,240,282,296,360,338,426,318,531,532,657,602,809,612,1213,1238,1224,1207,5694,3280]} 1. e4 c5 2. Nf3 e6 3. d4 cxd4 4. Nxd4 a6 5. Bd3 Qc7 6. O-O Nf6 7. Qe2 d6 8. c4 Nbd7 9. f4 h5 10. Kh1 Ng4 11. Nc3 Be7 {White is better.} 12. Bd2 Qb6 13. Nb3 Nc5 14. Nxc5 Qxc5 {[#]} 15. b4 $1 {[%mdl 512]} Qa7 (15... Qd4 16. h3) 16. h3 {[%cal Og2g3]} f6 17. g3 (17. hxg4 $2 hxg4#) 17... Nh6 18. Be3 $36 {[%mdl 2048] White is on the roll.} b6 19. Qxh5+ Nf7 20. Qg6 {White has more active pieces. The black rooks are passive.} (20. Qe2 $16) 20... Kf8 $14 21. h4 Qb7 (21... d5 $142) 22. Kg1 $16 b5 23. cxb5 axb5 24. Nxb5 (24. Bxb5 Rh6 25. Qg4 f5) 24... f5 $2 (24... d5 {might work better.} 25. Rfc1 Rh6) 25. exf5 Rh6 26. Qg4 {Hoping for Nd4.} exf5 27. Qf3 (27. Bxf5 Bxf5 28. Qxf5 Bxh4 29. Nxd6 (29. gxh4 Rxh4 30. Qd3 Rh3 $11) 29... Rxd6 30. gxh4 Kg8 $14) 27... Qxf3 28. Rxf3 {[%cal Bf1f3,Bf3f2,Bf2e2][%mdl 32]} Bb7 29. Rf2 Rg6 30. Kh2 (30. Bxf5 $2 {perishes.} Rxg3+ 31. Kh2 Rxe3 $19) 30... Nh6 31. Kh3 Ba6 32. a4 Rb8 33. Rc1 Bd8 $2 (33... Ng4 34. Re2 (34. Bxf5 Nxf2+ 35. Bxf2 Rf6 $18) 34... Nxe3 35. Rxe3 d5 36. Bxf5 Rf6) 34. Re2 $18 {White is clearly winning.} Bb7 35. Nd4 {[%cal Bb5d4,Bd4f5,Bf5d6][%mdl 32]} Bf6 36. Nxf5 Bc8 {[#]} 37. Rxc8+ Rxc8 38. Nxd6 Rd8 39. Bxg6 {Weighted Error Value: White=0.34/Black=0.47.  Mistake:       	White=1     	Black=4      Inaccurate:     	White=2     	Black=3      OK:         	White=15    	Black=11     Best:        	White=1     	Black=1} 1-0

[Event "45th FIDE Olympiad 2024"]
[Site "Budapest"]
[Date "2024.09.11"]
[Round "1.168"]
[White "Makem, Pierre"]
[Black "Miezis, Normunds"]
[Result "0-1"]
[ECO "D00"]
[WhiteElo "1860"]
[BlackElo "2417"]
[Annotator "TA"]
[PlyCount "74"]
[EventDate "2024.09.05"]
[EventType "team-tourn"]
[EventCountry "HUN"]
[SourceTitle "playchess.com"]
[Source "ChessBase"]
[SourceQuality "1"]
[WhiteTeam "Cameroon"]
[BlackTeam "Latvia"]
[WhiteTeamCountry "CAM"]
[BlackTeamCountry "LAT"]
[TimeControl "40/5400+30:1800+30"]

{[%evp 9,74,0,22,4,0,-17,-2,-68,-61,-74,-52,-92,-104,-112,-87,-82,-62,-56,-62,-94,-49,-53,-36,-30,-32,-9,-19,0,0,-68,-70,-69,-59,-77,-89,-74,-68,-125,-100,-107,-86,-114,-62,-104,-92,-166,-112,-118,-108,-164,-162,-238,-235,-322,-299,-300,-297,-354,-344,-623,-577,-610,-614,-591,-582,-677,-563]} 1. d4 Nf6 2. Nc3 d5 3. Bf4 e6 4. e3 a6 5. g4 h6 6. Qf3 b5 7. a3 Bb7 8. Qg3 (8. h4 $11) 8... c5 $15 9. Bc7 Qc8 10. f3 Nc6 11. O-O-O cxd4 12. exd4 Qd7 {Against Bd6} 13. Kb1 Rc8 14. Be5 b4 15. axb4 Bxb4 16. Nge2 Na5 {And now ...Nc4 would win.} 17. Na2 Bf8 18. Nec3 Qc6 19. g5 (19. h4 $11) 19... hxg5 20. Qxg5 Nd7 21. h4 (21. Bxg7 $2 {perishes.} Rg8 22. h4 Rxg7 $19 (22... Bxg7 $2 23. h5 $17)) 21... Nxe5 22. Qxe5 Qc7 23. Qg5 ({Better is} 23. f4 $15) 23... Rh6 $17 24. h5 Rf6 25. Be2 {[%cal Oh5h6]} Qf4 (25... Bc6 $17 26. Ka1 (26. Bxa6 Rb8 $17) 26... Rb8) 26. Rhg1 Nc4 27. Rd3 (27. Qxf4 $17 Rxf4 28. b3) 27... Qxg5 (27... Qb8 $19 28. Rdd1 Rf5) 28. Rxg5 Rf4 {Black is more active.} 29. b3 (29. Nc1 $17 {might work better.}) 29... Nd6 $19 30. Bf1 (30. Na4 {was worth a try.}) 30... Rh4 31. Re5 Be7 32. Re1 Nf5 33. Ne2 a5 {[%cal Ob7a6]} ({But not} 33... Rxh5 34. f4 $19) 34. Nac3 $2 {[#]} (34. f4) 34... Bb4 {[%cal Ob7a6] Black is clearly winning.} 35. f4 Ba6 36. Rh3 Bxe2 37. Rxe2 Rxc3 {Weighted Error Value: White=0.41/Black=0.12 (very precise) .  Mistake:       	White=7     	Black=2      Inaccurate:     	White=5     	Black=1      OK:         	White=8     	Black=15     Best:        	---       	Black=1} 0-1